bitfinex/quotes_SOLUSD_20260217
["timestamp","ask_amount","ask_price","bid_price","bid_amount"]
[1771320057572,12.15321863,85.978,85.951,0.53074299]
[1771320058270,12.15321863,85.978,85.953,0.53074299]
[1771320059856,0.52233632,85.985,85.953,0.53074299]
[1771320060056,0.52233632,85.983,85.955,0.53074299]
[1771320060472,0.52233632,85.979,85.954,11.63412988]
[1771320060960,0.52233632,85.979,85.948,0.53074299]
[1771320061271,0.52233632,85.959,85.939,0.53074299]
[1771320061770,0.52233632,85.959,85.93,3.84604049]
[1771320061967,0.52233632,85.959,85.931,0.53074299]
[1771320062168,0.52233632,85.957,85.933,0.53074299]
[1771320063476,11.63385918,85.956,85.933,0.53074299]
[1771320063667,0.52233632,85.955,85.933,0.53074299]
[1771320064273,3.3152975,85.96,85.886,4.61729252]
[1771320064274,11.63232294,85.968,85.941,0.53074299]
[1771320064775,12.15430095,85.97,85.941,0.53074299]
[1771320065476,0.52233632,85.97,85.941,0.53074299]
[1771320066772,11.6315104,85.974,85.943,0.53074299]
[1771320067178,0.52233632,85.983,85.943,0.53074299]
[1771320067374,0.52233632,85.983,85.951,0.53074299]
[1771320068279,0.52233632,85.99,85.951,0.53074299]
[1771320068854,0.52233632,85.99,85.961,0.53074299]
[1771320069068,0.52233632,86.008,85.971,0.53074299]
[1771320069467,0.52233632,86.007,85.971,0.53074299]
[1771320070573,0.52233632,85.999,85.971,0.53074299]
[1771320071361,0.52233632,85.997,85.971,0.53074299]
[1771320073672,0.52233632,85.995,85.971,0.53074299]
[1771320073982,0.52233632,85.995,85.967,11.63230137]
[1771320074670,0.48465559,85.993,85.967,0.50387122]
[1771320076285,0.48465559,85.993,85.96,3.3152975]
[1771320076585,0.48465559,85.993,85.951,0.50387122]
[1771320076887,40.70016082,85.995,85.95,3.3152975]
[1771320076888,0.48465559,85.991,85.955,0.50387122]
[1771320077384,0.48465559,85.989,85.955,0.50387122]
[1771320079267,0.48465559,85.987,85.955,0.50387122]
[1771320079774,0.48465559,85.979,85.949,0.50387122]
[1771320080688,0.48465559,85.969,85.949,0.50387122]
[1771320080868,0.48465559,85.969,85.943,0.50387122]
[1771320081280,0.48465559,85.967,85.943,0.50387122]
[1771320082179,0.48465559,85.979,85.945,0.50387122]
[1771320082502,0.48465559,85.979,85.951,0.50387122]
[1771320083366,0.48465559,85.985,85.953,0.50387122]
[1771320085674,0.48465559,85.985,85.955,0.50387122]
[1771320085870,0.48465559,85.999,85.961,0.50387122]
[1771320086181,11.62834303,85.997,85.961,0.50387122]
[1771320086794,0.48465559,85.996,85.961,0.50387122]
[1771320087006,0.48465559,85.996,85.954,12.1380011]
[1771320087179,0.48465559,85.989,85.955,0.50387122]
[1771320087785,0.48465559,85.999,85.961,0.50387122]
[1771320088896,11.62833752,85.997,85.971,0.50387122]
[1771320089086,0.48465559,86.006,85.971,0.50387122]
[1771320090482,0.48465559,85.999,85.971,0.50387122]
[1771320090687,0.48465559,85.999,85.965,0.50387122]
[1771320091783,0.48465559,85.997,85.967,0.50387122]
[1771320093080,0.48465559,85.989,85.959,0.50387122]
[1771320093696,0.48465559,85.989,85.96,11.63331782]
[1771320093893,0.48465559,85.989,85.961,0.50387122]
[1771320094789,0.48465559,85.988,85.961,0.50387122]
[1771320095797,0.48465559,85.988,85.963,0.50387122]
[1771320096483,0.48465559,86.003,85.963,0.50387122]
[1771320097592,0.48465559,85.999,85.965,0.50387122]
[1771320100905,0.48465559,85.997,85.967,0.50387122]
[1771320102886,11.62844783,85.996,85.967,0.50387122]
[1771320103088,0.48465559,85.995,85.967,0.50387122]
[1771320103600,0.48465559,86.0,85.97,3.31108499]
[1771320103804,0.48465559,86.008,85.971,0.50387122]
[1771320106207,12.10526328,86.007,85.973,0.49248728]
[1771320106508,11.62559395,86.018,85.981,0.49248728]
[1771320106697,0.47830269,86.019,85.991,0.49248728]
[1771320107582,12.10369981,86.019,85.991,0.49248728]
[1771320107803,0.47830269,86.018,85.991,0.49248728]
[1771320109308,0.47830269,86.018,85.993,0.49248728]
[1771320111109,0.47830269,86.018,85.981,0.47166102]
[1771320111407,0.46722187,86.007,85.977,0.47166102]
[1771320112490,0.46722187,85.989,85.951,0.47166102]
[1771320112708,0.46722187,85.989,85.961,0.47166102]
[1771320113506,0.46722187,85.989,85.963,0.47166102]
[1771320114291,0.46722187,85.995,85.963,0.47166102]
[1771320117497,0.46722187,85.993,85.965,0.47166102]
[1771320119312,0.46722187,85.991,85.967,0.47166102]
[1771320119515,0.46722187,85.999,85.967,0.47166102]
[1771320119714,11.62601709,86.014,85.981,0.47166102]
[1771320119905,0.46722187,86.013,85.981,0.47166102]
[1771320121914,0.46722187,86.013,85.983,0.47166102]
[1771320122297,11.6262847,86.012,85.983,0.47166102]
[1771320122505,0.46722187,86.011,85.983,0.47166102]
[1771320125501,0.46722187,86.021,85.99,3.31108499]
[1771320125697,0.46722187,86.028,85.991,0.47166102]
[1771320127314,0.46722187,86.019,85.984,12.10173173]
[1771320129021,0.46722187,86.017,85.985,0.47166102]
[1771320130920,0.46722187,86.017,85.946,46.54043672]
[1771320130921,0.46722187,85.999,85.961,0.47166102]
[1771320134510,0.50384291,85.997,85.963,0.48051684]
[1771320134712,0.50384291,85.997,85.962,11.63304716]
[1771320134713,0.50384291,86.003,85.971,0.48051684]
[1771320135521,0.50384291,85.999,85.971,0.48051684]
[1771320136314,0.50384291,86.008,85.971,0.48051684]
[1771320137028,0.50384291,86.008,85.981,0.48051684]
[1771320137936,0.50384291,86.007,85.981,0.48051684]
[1771320139225,3.31108499,86.02,85.982,0.48051684]
[1771320139226,0.50384291,86.013,85.982,0.48051684]
[1771320141519,0.50384291,86.011,85.983,11.63020597]
[1771320141734,0.50384291,86.011,85.983,12.11072281]
[1771320142134,0.50384291,86.011,85.984,0.48051684]
[1771320143136,0.50384291,86.009,85.977,0.48051684]
[1771320144423,0.50384291,86.007,85.979,0.48051684]
[1771320144823,0.50384291,86.007,85.981,0.48051684]
[1771320146841,11.62709578,86.006,85.981,0.48051684]
[1771320147439,12.13093869,86.006,85.981,0.48051684]
[1771320147623,0.50384291,86.012,85.983,0.48051684]
[1771320150647,0.50384291,86.012,85.985,0.48051684]
[1771320153029,0.50384291,86.012,85.987,0.48051684]
[1771320153223,0.50384291,86.01,85.987,0.48051684]
[1771320156348,0.50384291,86.008,85.987,0.48051684]
[1771320158250,0.50384291,86.008,85.988,0.48051684]
[1771320159946,0.50384291,86.008,85.978,29.07695495]
[1771320159947,0.50384291,86.02,85.991,0.48051684]
[1771320160149,0.50384291,86.02,85.989,11.62939445]
[1771320160150,12.12647915,86.039,86.011,0.48051684]
[1771320160350,11.62216375,86.043,86.011,0.48051684]
[1771320160530,0.50384291,86.042,86.011,0.48051684]
[1771320161536,0.50384291,86.039,86.005,0.48051684]
[1771320162650,0.50384291,86.037,86.006,0.48051684]
[1771320163656,0.50384291,86.037,86.007,0.48051684]
[1771320164853,0.50384291,86.037,86.009,0.46775689]
[1771320165054,0.46175868,86.035,86.009,0.46775689]
[1771320167162,11.62331171,86.034,86.009,0.46775689]
[1771320167355,3.30815073,86.03,86.009,0.46775689]
[1771320167861,3.76990941,86.03,86.009,0.46775689]
[1771320168256,0.46175868,86.029,85.996,0.46775689]
[1771320169057,0.46175868,86.027,85.996,0.46775689]
[1771320169256,0.46175868,86.009,85.991,11.62909644]
[1771320169564,0.46175868,86.009,85.992,0.46775689]
[1771320170961,3.30815073,86.01,85.992,0.46775689]
[1771320171261,0.46211033,86.015,85.993,11.62885351]
[1771320171438,0.46211033,86.015,85.994,0.46526252]
[1771320171862,2.07163121,86.02,85.995,0.46526252]
[1771320172052,0.46211033,86.029,85.995,0.46526252]
[1771320172247,0.46211033,86.029,85.997,0.46526252]
[1771320172556,3.30815073,86.02,85.997,0.46526252]
[1771320172750,0.46211033,86.021,85.997,0.46526252]
[1771320173150,3.77026106,86.01,85.989,0.46526252]
[1771320173345,0.46211033,86.009,85.989,0.46526252]
[1771320174359,0.46211033,86.021,85.991,0.46526252]
[1771320174580,3.30815073,86.02,85.991,0.46526252]
[1771320174760,0.46211033,86.019,85.991,0.46526252]
[1771320175354,0.46211033,86.019,85.994,0.46526252]
[1771320176549,11.62498502,86.022,85.994,0.46526252]
[1771320176948,12.08709535,86.022,85.994,0.46526252]
[1771320177364,12.08709535,86.022,85.996,0.46526252]
[1771320177551,0.46211033,86.021,85.996,0.46526252]
[1771320182273,0.46211033,86.021,85.998,0.46526252]
[1771320182571,12.08731377,86.02,85.998,0.46526252]
[1771320182777,0.46211033,86.019,85.998,0.46526252]
[1771320183872,0.46211033,86.009,85.984,0.46526252]
[1771320186560,0.46211033,86.009,85.986,0.46526252]
[1771320188178,0.46211033,86.007,85.986,0.46526252]
[1771320188974,0.46211033,86.007,85.981,0.46526252]
[1771320189861,0.46211033,85.989,85.951,0.46526252]
[1771320190076,0.46211033,85.979,85.951,0.46526252]
[1771320190280,0.46211033,85.979,85.946,0.46526252]
[1771320191557,0.46211033,85.979,85.948,0.46526252]
[1771320191754,11.63030588,85.983,85.951,0.46526252]
[1771320192273,12.09241621,85.983,85.951,0.46526252]
[1771320192863,0.46211033,85.969,85.946,0.46526252]
[1771320193069,0.46211033,85.969,85.946,17.5]
[1771320193376,0.46211033,85.969,85.92,3.30815073]
[1771320193377,0.46211033,85.959,85.928,17.96526252]
[1771320193678,0.46211033,85.949,85.929,0.46526252]
[1771320194786,3.30815073,85.94,85.926,17.5]
[1771320194963,0.46180937,85.939,85.901,0.49469248]
[1771320195281,3.30815073,85.91,85.9,0.1]
[1771320195589,3.7699601,85.94,85.902,0.49469248]
[1771320195888,0.46180937,85.939,85.904,0.49469248]
[1771320196104,0.46180937,85.929,85.901,11.64130801]
[1771320196288,0.46180937,85.919,85.9,0.1]
[1771320196759,0.46180937,85.939,85.901,0.49469248]
[1771320197072,0.46180937,85.939,85.903,0.49469248]
[1771320197262,0.46180937,85.939,85.905,0.49469248]
[1771320197462,0.46180937,85.939,85.907,0.49469248]
[1771320197664,0.46180937,85.939,85.908,17.5]
[1771320197877,0.46180937,85.939,85.91,0.49469248]
[1771320198076,3.30815073,85.93,85.911,0.49469248]
[1771320199989,3.30815073,85.94,85.913,0.49469248]
[1771320200667,0.46180937,85.979,85.931,0.49469248]
[1771320200884,0.46180937,85.979,85.941,0.49469248]
[1771320201865,3.30815073,85.97,85.944,0.49469248]
[1771320202873,3.30815073,85.97,85.946,0.49469248]
[1771320203088,0.46180937,85.977,85.946,0.49469248]
[1771320203290,3.30815073,85.98,85.946,0.49469248]
[1771320203675,3.30815073,85.98,85.948,0.49469248]
[1771320203866,3.30815073,85.97,85.943,0.49469248]
[1771320204188,0.46180937,85.969,85.939,0.49469248]
[1771320204771,0.46180937,85.969,85.94,17.99469248]
[1771320207088,0.46180937,85.969,85.941,11.63588973]
[1771320207273,0.46180937,85.969,85.941,12.13058221]
[1771320208596,0.46180937,85.968,85.942,0.49469248]
[1771320208785,3.7699601,85.96,85.942,0.49469248]
[1771320209086,3.7699601,85.96,85.943,11.63561895]
[1771320210000,0.46180937,85.966,85.943,0.49469248]
[1771320211100,0.46180937,85.966,85.939,18.01469248]
[1771320211308,0.46180937,85.966,85.94,0.49469248]
[1771320215793,0.46180937,85.966,85.942,0.49469248]
[1771320216894,0.46180937,85.966,85.944,0.49469248]
[1771320217778,0.46180937,85.964,85.935,0.49469248]
[1771320218101,3.30815073,85.97,85.92,3.30815073]
[1771320218102,0.46180937,85.959,85.937,0.49469248]
[1771320218296,0.46180937,85.969,85.937,0.49469248]
[1771320218886,3.30815073,85.96,85.937,0.49469248]
[1771320219094,0.46180937,85.959,85.937,0.49469248]
[1771320220492,0.46180937,85.959,85.933,17.54]
[1771320220493,0.46180937,85.959,85.939,0.49469248]
[1771320220696,0.46180937,85.967,85.939,0.49469248]
[1771320221289,11.63250587,85.966,85.939,0.49469248]
[1771320221488,0.46180937,85.965,85.939,0.49469248]
[1771320223212,0.46180937,85.965,85.94,11.63602513]
[1771320223396,0.46180937,85.965,85.941,0.49469248]
[1771320223581,11.63277651,85.964,85.941,0.49469248]
[1771320223787,0.46180937,85.963,85.941,0.49469248]
[1771320226087,4.61729252,85.991,85.923,29.09552795]
[1771320226088,0.47003582,85.959,85.924,0.4595703]
[1771320226398,0.47003582,85.959,85.933,0.4595703]
[1771320227990,0.47003582,85.959,85.935,0.4595703]
[1771320228502,0.47003582,85.958,85.935,0.4595703]
[1771320230512,0.47003582,85.958,85.936,12.13128346]
[1771320231411,0.47003582,85.958,85.936,11.63656674]
[1771320231607,0.47003582,85.958,85.937,0.49471672]
[1771320234210,0.47834421,85.957,85.937,0.49471672]
[1771320235098,0.47834421,85.957,85.936,11.63650413]
[1771320235612,0.47834421,85.957,85.936,12.13122085]
[1771320237015,0.47834421,85.957,85.937,0.49471672]
[1771320241825,0.47834421,85.957,85.939,0.49471672]
[1771320243028,0.47834421,85.963,85.939,0.49471672]
[1771320243525,11.63272764,85.965,85.939,0.49471672]
[1771320243917,0.47834421,85.981,85.941,0.49471672]
[1771320244118,0.47834421,85.981,85.943,0.49471672]
[1771320244323,0.47834421,85.979,85.943,0.49471672]
[1771320245011,0.47834421,85.979,85.945,0.49471672]
[1771320245206,0.47834421,85.979,85.947,0.49471672]
[1771320245822,0.47834421,85.979,85.949,0.49471672]
[1771320246020,0.47834421,85.977,85.949,0.49471672]
[1771320247135,3.31338628,85.97,85.949,0.49471672]
[1771320247308,0.47834421,85.969,85.949,0.49471672]
[1771320248227,0.47834421,85.967,85.944,0.49471672]
[1771320249406,3.31338628,85.97,85.944,0.49471672]
[1771320249612,0.47834421,85.973,85.946,0.49471672]
[1771320250017,0.47834421,85.972,85.946,0.49471672]
[1771320250532,0.47834421,85.972,85.947,0.49471672]
[1771320251212,11.62975726,85.987,85.947,0.49471672]
[1771320251532,0.47834421,85.995,85.951,0.49471672]
[1771320251717,0.47834421,85.989,85.951,0.49471672]
[1771320252626,0.47834421,85.989,85.953,0.49471672]
[1771320253809,11.6295297,85.988,85.953,0.49471672]
[1771320254021,0.47834421,85.979,85.954,0.49471672]
[1771320254831,11.6302261,85.983,85.956,0.47067073]
[1771320255132,0.49520036,85.979,85.956,0.47067073]
[1771320257728,0.49520036,85.978,85.953,17.62]
[1771320257918,0.49520036,85.978,85.954,17.62]
[1771320258113,0.49520036,85.969,85.93,3.31338628]
[1771320258325,0.49520036,85.969,85.931,17.62]
[1771320258731,0.49520036,85.969,85.931,58.35035341]
[1771320259212,0.49520036,85.978,85.94,3.31338628]
[1771320259612,0.49520036,85.976,85.933,40.72940546]
[1771320259814,0.49520036,85.969,85.934,0.47067073]
[1771320260015,0.49520036,85.969,85.935,0.47067073]
[1771320261832,0.49520036,85.969,85.934,17.62]
[1771320261833,0.49520036,85.969,85.937,0.47067073]
[1771320263640,0.49520036,85.969,85.939,0.47067073]
[1771320269540,0.49520036,85.969,85.941,0.47067073]
[1771320271743,0.49520036,85.969,85.943,0.47067073]
[1771320273945,0.49520036,85.969,85.945,0.47067073]
[1771320274324,0.49520036,85.969,85.944,29.29548357]
[1771320274523,0.49520036,85.969,85.945,0.47067073]
[1771320275222,0.49520036,85.967,85.945,0.47067073]
[1771320275743,0.49520036,85.967,85.944,17.66]
[1771320275744,0.49520036,85.967,85.947,0.47067073]
[1771320280349,0.49520036,85.975,85.95,3.78405701]
[1771320280530,0.49520036,85.975,85.948,40.72229719]
[1771320280848,0.49520036,85.975,85.949,0.47067073]
[1771320281645,0.49520036,85.975,85.95,18.15067073]
[1771320281947,0.49520036,85.975,85.951,0.47067073]
[1771320282146,0.49520036,85.975,85.946,0.47067073]
[1771320282346,0.49520036,85.974,85.947,29.78568144]
[1771320282555,0.49520036,85.974,85.948,0.47067073]
[1771320283852,0.49520036,85.974,85.948,12.10561278]
[1771320284041,3.31338628,85.97,85.949,0.47067073]
[1771320284438,0.45275614,85.969,85.949,0.47067073]
[1771320286052,0.45275614,85.969,85.951,0.47381183]
[1771320287953,0.45275614,85.969,85.95,11.63467132]
[1771320289650,0.45275614,85.975,85.951,0.47381183]
[1771320289850,0.45275614,85.975,85.953,0.47381183]
[1771320290944,0.47885823,85.988,85.953,0.47381183]
[1771320291850,0.47885823,85.986,85.955,0.47767036]
[1771320295277,0.47885823,85.991,85.961,0.47767036]
[1771320295440,0.47885823,85.989,85.961,0.47767036]
[1771320298162,0.47885823,85.997,85.963,0.47767036]
[1771320298479,0.47885823,85.997,85.971,0.47767036]
[1771320298646,0.47885823,86.009,85.981,0.47767036]
[1771320298846,0.47885823,86.009,85.983,0.47767036]
[1771320299948,0.47885823,86.019,85.991,0.47767036]
[1771320300459,0.47885823,86.019,85.993,0.47767036]
[1771320300642,0.47885823,86.019,85.995,0.47767036]
[1771320301765,0.47885823,86.019,85.995,12.10611991]
[1771320301968,0.47885823,86.019,85.996,0.47767036]
[1771320302367,0.47885823,86.018,85.989,17.72]
[1771320302666,11.6254706,86.019,85.922,46.55351289]
[1771320302667,0.47885823,86.009,85.975,0.47767036]
[1771320302854,0.47885823,86.009,85.977,0.47767036]
[1771320304670,0.47885823,86.009,85.979,0.47767036]
[1771320305449,0.47885823,86.016,85.991,0.47767036]
[1771320305871,0.47885823,86.016,85.992,17.72]
[1771320306175,0.47885823,86.016,85.993,0.47767036]
[1771320307050,0.47885823,86.025,86.001,0.47767036]
[1771320307773,0.47885823,86.036,86.001,0.47767036]
[1771320308479,0.47885823,86.041,86.011,0.47767036]
[1771320308655,0.47885823,86.041,86.012,0.47767036]
[1771320309371,3.51309821,86.05,86.014,0.47767036]
[1771320309372,0.47885823,86.047,86.014,0.47767036]
[1771320309978,0.47885823,86.047,86.021,0.47767036]
[1771320310469,0.47885823,86.047,86.023,0.47767036]
[1771320311075,0.15635415,86.05,86.023,0.47767036]
[1771320311577,0.15635415,86.05,86.025,0.47767036]
[1771320312667,0.15635415,86.05,86.027,0.47767036]
[1771320313562,0.15635415,86.05,86.031,0.47767036]
[1771320313880,0.15635415,86.05,86.033,0.47767036]
[1771320314258,0.2,86.06,86.033,0.47767036]
[1771320314461,0.2,86.06,86.035,0.47507961]
[1771320314860,0.45238017,86.066,86.026,40.68537418]
[1771320314861,0.2,86.07,86.041,0.47507961]
[1771320315080,0.2,86.07,86.042,17.74]
[1771320315380,0.2,86.07,86.043,0.47507961]
[1771320316582,0.2,86.07,86.04,3.31309821]
[1771320316583,11.61858508,86.069,86.045,0.47507961]
[1771320317085,0.2,86.07,86.047,0.47507961]
[1771320319976,0.45238017,86.059,86.025,0.47507961]
[1771320320187,11.61858508,86.069,86.025,0.47507961]
[1771320320188,0.45238017,86.049,86.026,17.74]
[1771320320369,0.45238017,86.049,86.027,0.47507961]
[1771320321290,0.45238017,86.068,86.031,0.47507961]
[1771320321473,0.45238017,86.068,86.026,17.74]
[1771320321474,0.45238017,86.066,86.033,0.47507961]
[1771320321878,0.45238017,86.066,86.035,0.47507961]
[1771320322184,0.45238017,86.066,86.021,0.47507961]
[1771320322489,0.45238017,86.043,86.022,0.47507961]
[1771320328290,0.45238017,86.039,86.003,0.47507961]
[1771320328489,0.45238017,86.039,86.001,29.06942942]
[1771320328490,0.45238017,86.039,86.005,0.47507961]
[1771320329479,0.45238017,86.029,86.005,0.47507961]
[1771320337391,0.45238017,86.029,86.007,0.47507961]
[1771320337594,11.62334343,86.034,86.007,0.47507961]
[1771320337595,0.45238017,86.033,86.007,0.47507961]
[1771320340603,0.45238017,86.031,86.007,0.47507961]
[1771320343090,0.45238017,86.038,86.007,0.47507961]
[1771320343306,0.45238017,86.038,86.009,0.47507961]
[1771320344013,0.45238017,86.029,86.004,0.47507961]
[1771320345499,0.45238017,86.029,86.005,0.45221545]
[1771320347218,11.62412237,86.028,86.005,0.45221545]
[1771320349005,0.48047977,86.028,86.005,0.45221545]
[1771320352600,0.48047977,86.028,86.007,0.47103173]
[1771320353591,0.4682677,86.033,86.007,0.47103173]
[1771320355001,0.4682677,86.033,86.009,0.47103173]
[1771320355192,0.4682677,86.056,86.021,0.47103173]
[1771320355394,12.08860794,86.056,86.023,0.47103173]
[1771320355591,12.08796376,86.061,86.031,0.47103173]
[1771320355789,11.61969606,86.061,86.033,0.47103173]
[1771320355995,11.61932614,86.064,86.033,0.47103173]
[1771320356212,12.08759384,86.064,86.033,0.47103173]
[1771320356411,0.4682677,86.063,86.033,0.47103173]
[1771320356710,11.81849559,86.07,86.041,0.47103173]
[1771320356895,0.4682677,86.067,86.042,0.47103173]
[1771320358215,0.4682677,86.067,86.044,0.47103173]
[1771320358408,0.2,86.07,86.044,0.47103173]
[1771320358610,0.2,86.07,86.046,0.47103173]
[1771320359112,11.61858508,86.069,86.046,0.47103173]
[1771320359308,12.08685278,86.069,86.046,0.47103173]
[1771320359917,0.4682677,86.068,86.046,0.47103173]
[1771320361013,0.4682677,86.066,86.046,0.47103173]
[1771320361917,3.30825459,86.06,86.005,29.06807743]
[1771320362214,0.4682677,86.049,86.006,17.78]
[1771320362406,0.4682677,86.049,86.01,3.30825459]
[1771320363198,0.4682677,86.047,86.011,11.62641987]
[1771320364113,0.4682677,86.047,86.012,0.47103173]
[1771320364839,0.4682677,86.039,86.012,0.47103173]
[1771320365203,0.4682677,86.037,86.012,0.47103173]
[1771320365703,0.4682677,86.037,86.014,0.47103173]
[1771320370306,0.4682677,86.035,86.014,0.47103173]
[1771320370501,0.4682677,86.035,86.01,17.78]
[1771320371431,0.4682677,86.035,86.011,11.62641987]
[1771320371631,0.4682677,86.035,86.011,12.0974516]
[1771320375215,0.4682677,86.035,86.012,0.47783839]
[1771320375417,0.4682677,86.035,86.013,0.47783839]
[1771320375730,0.48845194,86.033,86.013,0.47783839]
[1771320375933,0.48845194,86.033,86.014,17.8]
[1771320376530,0.48845194,86.033,86.006,0.47783839]
[1771320376726,0.48845194,86.029,86.007,17.8]
[1771320377215,0.48845194,86.029,86.008,0.47783839]
[1771320380124,0.48845194,86.029,86.009,0.47783839]
[1771320381037,11.62412237,86.028,86.009,0.47783839]
[1771320381229,0.48845194,86.027,86.009,0.47783839]
[1771320390444,0.48845194,86.025,86.005,0.47783839]
[1771320390636,0.48845194,86.025,86.006,18.31783839]
[1771320390834,0.48845194,86.033,86.007,0.47783839]
[1771320392644,0.48845194,86.032,86.007,0.47783839]
[1771320394646,0.48845194,86.03,86.009,0.47783839]
[1771320397354,0.48845194,86.028,86.009,0.47783839]
[1771320401668,0.48845194,86.026,86.009,0.47783839]
[1771320402381,0.48845194,86.026,86.01,0.47783839]
[1771320404958,0.48845194,86.026,86.01,12.10439344]
[1771320405147,11.62296861,86.037,86.011,0.47242505]
[1771320405349,11.62296861,86.037,86.013,0.47242505]
[1771320405658,0.45570526,86.036,86.013,0.47242505]
[1771320407446,11.62317661,86.035,86.013,0.47242505]
[1771320407652,0.45570526,86.034,86.013,0.47242505]
[1771320408647,0.45570526,86.034,86.001,11.62764275]
[1771320408648,0.45570526,86.034,86.01,17.9]
[1771320408847,0.45570526,86.029,86.01,17.9]
[1771320409673,11.62412237,86.028,86.01,17.9]
[1771320409853,0.45570526,86.027,86.01,17.9]
[1771320410648,0.45570526,86.027,86.011,0.45422871]
[1771320413367,0.45570526,86.027,86.01,17.9]
[1771320414968,0.4787998,86.026,86.01,17.9]
[1771320417975,11.62452775,86.025,86.01,17.9]
[1771320418187,0.4787998,86.024,86.01,17.9]
[1771320421987,11.62479801,86.023,85.985,0.45422871]
[1771320422165,0.4787998,86.009,85.981,0.45422871]
[1771320424075,0.4787998,86.009,85.983,0.45422871]
[1771320426892,0.4787998,86.009,85.985,0.45422871]
[1771320431093,0.4787998,86.009,85.986,0.45422871]
[1771320436309,0.46496202,86.007,85.983,17.96]
[1771320436499,0.46496202,85.999,85.983,17.96]
[1771320437388,0.46496202,85.999,85.983,18.41709592]
[1771320437588,0.46496202,85.999,85.984,0.45709592]
[1771320442690,0.46496202,86.003,85.984,0.45709592]
[1771320443794,0.46496202,86.001,85.984,0.45709592]
[1771320446107,0.46496202,85.999,85.984,0.45709592]
[1771320447113,0.46496202,85.997,85.981,17.98]
[1771320447297,0.46496202,85.997,85.981,18.43709592]
[1771320448001,0.46496202,85.997,85.981,17.98]
[1771320448312,0.46496202,85.997,85.982,0.45709592]
[1771320449220,0.46496202,86.001,85.982,0.45709592]
[1771320450210,3.77264121,86.02,85.984,0.45709592]
[1771320450414,0.46496202,86.019,85.984,0.45709592]
[1771320451598,0.46496202,85.999,85.974,0.45709592]
[1771320452007,0.46496202,85.979,85.946,0.45709592]
[1771320452312,0.46496202,85.979,85.948,0.45709592]
[1771320452497,0.46496202,85.969,85.948,0.45709592]
[1771320453003,0.46496202,85.969,85.939,11.63616053]
[1771320453190,0.46496202,85.969,85.946,17.98]
[1771320453516,0.46496202,85.959,85.946,17.98]
[1771320454205,0.46496202,85.959,85.946,29.61515081]
[1771320454398,0.46496202,85.969,85.946,29.61515081]
[1771320455193,0.46496202,85.969,85.946,11.63515081]
[1771320455912,0.46496202,85.969,85.949,0.45709592]
[1771320456406,0.46496202,85.967,85.949,0.45709592]
[1771320461415,3.77264121,85.97,85.949,0.45709592]
[1771320461798,0.46496202,85.969,85.949,0.45709592]
[1771320462004,0.46496202,85.969,85.945,18.0]
[1771320463112,0.46496202,85.969,85.945,18.45709592]
[1771320463313,11.63223525,85.968,85.945,0.45709592]
[1771320463505,0.46496202,85.959,85.94,18.02]
[1771320464317,0.46496202,85.959,85.94,18.48227471]
[1771320464705,0.45694283,85.964,85.941,0.46227471]
[1771320466618,11.63291183,85.963,85.941,0.46227471]
[1771320466917,0.45694283,85.962,85.942,18.02]
[1771320467212,0.45694283,85.962,85.943,0.46227471]
[1771320468022,0.45694283,85.96,85.943,0.46227471]
[1771320470723,11.63345315,85.959,85.943,0.46227471]
[1771320470924,0.45427812,85.958,85.943,0.46227471]
[1771320473728,0.45427812,85.963,85.943,0.46227471]
[1771320473912,0.45427812,85.963,85.94,18.52003867]
[1771320474117,0.45427812,85.963,85.941,0.48003867]
[1771320476828,0.45427812,85.961,85.941,0.48003867]
[1771320479325,0.45427812,85.959,85.942,18.06]
[1771320479628,0.45427812,85.959,85.942,18.54003867]
[1771320479829,0.45427812,85.959,85.943,0.48003867]
[1771320480430,0.45427812,85.966,85.943,0.48003867]
[1771320480729,0.45427812,85.989,85.961,0.48003867]
[1771320480931,0.45427812,85.996,85.97,3.31362591]
[1771320481234,0.45427812,86.001,85.974,0.48003867]
[1771320481435,0.45427812,86.0,85.974,0.48003867]
[1771320482316,0.45427812,85.999,85.974,0.48003867]
[1771320485535,0.45427812,85.999,85.974,0.16003867]
[1771320488133,12.08239974,85.999,85.974,0.16003867]
[1771320488332,0.45427812,85.998,85.974,0.16003867]
[1771320491239,0.45427812,85.998,85.973,11.63155874]
[1771320491240,0.45427812,86.038,85.991,0.23672113]
[1771320491441,3.31362591,86.01,85.984,11.63007071]
[1771320491632,0.45427812,86.009,85.985,18.08]
[1771320491829,0.45427812,85.999,85.966,0.23671767]
[1771320492038,0.45427812,85.999,85.967,18.08]
[1771320492341,0.45427812,85.999,85.967,18.31671767]
[1771320492743,0.45427812,85.999,85.968,18.31671424]
[1771320493549,0.45427812,85.999,85.97,0.23671424]
[1771320495441,0.46879546,85.998,85.97,0.23671424]
[1771320495642,0.46879546,85.998,85.969,11.63209994]
[1771320496147,0.46879546,85.996,85.967,18.1]
[1771320496447,3.31362591,85.99,85.967,18.1]
[1771320496637,0.46879546,85.989,85.967,18.1]
[1771320497546,0.46879546,85.989,85.965,0.23670092]
[1771320497736,0.46879546,85.989,85.966,29.73250587]
[1771320498136,0.46879546,85.989,85.967,0.23669449]